Cogmind - Beta 16 @@@ ROGUE MODE // 2025.12.25 @ 00:05:07 Player: PE-P51 Result: Destroyed by CT-7Q8(R) with Subdweller Machine Gun Performance ------------- Evolutions (0) 0 Regions Visited (2) 400 Robots Destroyed (26) 130 Value Destroyed (702) 702 Prototype IDs (0) 0 Alien Tech Used (0) 0 Bonus (0) 0 TOTAL SCORE: 1232 Bonus ------- None Cogmind --------- Core Integrity 0/250 Matter 2/300 Energy 200/200 System Corruption 4% Temperature Cool (0) Movement Treading (320) Ox2 Location -10/Subcaves Parts ------- > --- POWER (1) -------- Subdweller Power Source > --- PROPULSION (2) --- Light Treads Light Treads > --- UTILITY (2) ------ Disposable Heat Sink Huge Storage Unit > --- WEAPON (2) ------- Subdweller Machine Gun Grenade Launcher > --- INVENTORY (25) --- Subdweller Power Source Light Treads Flight Unit Flight Unit Flight Unit Flight Unit Large Storage Unit Huge Storage Unit Medium Matter Pod (100) Medium Laser Particle Gun Assault Rifle Light Cannon Grenade Launcher Mining Laser Peak State ------------ > --- POWER ------------ Subdweller Power Source > --- PROPULSION ------- Light Treads Light Treads > --- UTILITY ---------- Disposable Heat Sink Huge Storage Unit > --- WEAPON ----------- Particle Gun Subdweller Machine Gun > --- INVENTORY -------- Light Treads Flight Unit Flight Unit Flight Unit Flight Unit Large Storage Unit Huge Storage Unit Medium Matter Pod Assault Rifle Light Cannon Grenade Launcher Grenade Launcher Mining Laser [Rating: 12] Favorites ----------- Power Ion Engine Engine Ion Engine Propulsion Light Treads Treads Light Treads Leg Aluminum Leg Utility Huge Storage Unit Device Disposable Heat Sink Storage Huge Storage Unit Weapon Light Cannon Energy Gun Particle Gun Ballistic Gun Assault Rifle Ballistic Cannon Light Cannon Launcher Grenade Launcher Build | -11 -10 -10 ------- Run | Yrd Mat Sub Slots Evolved . | . . . Power . | . . . Propulsion . | . . . Utility . | . . . Weapon . | . . . Parts Attached 31 | . 21 10 Power 4 | . 2 2 Engine 4 | . 2 2 Core . | . . . Reactor . | . . . Propulsion 9 | . 7 2 Treads 4 | . 2 2 Leg 5 | . 5 . Wheel . | . . . Hover . | . . . Flight . | . . . Utility 5 | . 4 1 Device 3 | . 2 1 Storage 2 | . 2 . Processor . | . . . Hackware . | . . . Protection . | . . . Artifact . | . . . Weapon 13 | . 8 5 Energy Gun 3 | . 1 2 Energy Cannon . | . . . Ballistic Gun 6 | . 4 2 Ballistic Cannon 2 | . 2 . Launcher 2 | . 1 1 Special Weapon . | . . . Impact Weapon . | . . . Slashing Weapon . | . . . Piercing Weapon . | . . . Special Melee Weapon . | . . . Unidentified Prototypes . | . . . Parts Lost 7 | . . 7 Power 2 | . . 2 Propulsion 2 | . . 2 Utility . | . . . Weapon 3 | . . 3 Highest Loss Streak 5 | . . 5 To Critical Strikes . | . . . Average Backups 15 | . 14 16 Power . | . 1 . Propulsion 5 | . 5 6 Utility 2 | . 2 3 Weapon 5 | . 5 6 Tool/Special . | . . . Unused Backups 13 | . 5 8 Power . | . . . Propulsion 6 | . 1 5 Utility 3 | . 1 2 Weapon 4 | . 3 1 Tool/Special . | . . . Average Slot Usage (%) 96 | . 93 98 Engine 12 | . 11 13 Treads 21 | . 14 27 Leg 6 | . 13 . Device 12 | . 10 14 Storage 14 | . 14 14 Energy Gun 4 | . 1 7 Ballistic Gun 8 | . 10 6 Ballistic Cannon 12 | . 16 8 Launcher 3 | . . 5 Peak Build Rating 12 | . 9 12 Average Rating 9 | . 7 10 On Entrance 7 | 6 6 9 Avg Prop Armor Cover (%) 6 | . 6 . Naked Turns . | . . . Heaviest Build 93 | 13 92 93 Greatest Support 40 | 20 40 40 Greatest Overweight (x) 4 | . 2 4 Average Overweight (x) 1 | . . 2 Largest Inventory Capacity 25 | . 25 25 Average Capacity 21 | . 18 25 Most Carried 19 | . 19 19 Average Carried 15 | . 14 16 Final Capacity 25 | 8 25 25 Final Carried 19 | 6 19 15 Class Distribution -------------------- 59% | Scavenger-Mutant 40% | Mutant Dominant Class ---------------- Scavenger-Mutant | -10/Materials Mutant | -10/Subcaves Resources | -11 -10 -10 ----------- Run | Yrd Mat Sub Matter Collected 1012 | 175 633 204 Remotely . | . . . Salvage Created 611 | . 465 146 Parts 52 | . 38 14 Haulers Intercepted 2 | . 2 . Recyclers Shooed . | . . . Parts Field Recycled . | . . . Retrieved Matter . | . . . Parts Self-Destructed 15 | . . 15 Prevented . | . . . Parts Restored . | . . . Kills | -11 -10 -10 ------- Run | Yrd Mat Sub Combat Hostiles Destroyed 20 | . 12 8 Guns 9 | . 6 3 Cannons 6 | . 3 3 AOE 5 | . 3 2 Classes Destroyed 6 | . 4 2 Hauler 2 | . 2 . Turret 2 | . . 2 Watcher 2 | . 2 . Swarmer 5 | . 3 2 Grunt 9 | . 9 . Subdweller 6 | . . 6 Best Kill Streak 3 | . 3 2 Combat Bots Only 3 | . 3 2 Max Kills in Single Turn 2 | . 2 1 Gunslinging . | . . . Exploded 2 | . 2 1 Melee . | . . . Uniques/NPCs Destroyed . | . . . Combat | -11 -10 -10 -------- Run | Yrd Mat Sub Hostile Shots Fired 147 | . 33 114 Missed 50 | . 11 39 Hits 97 | . 22 75 Projectile 97 | . 22 75 Critical Strikes 1 | . . 1 Damage Taken 1711 | . 441 1270 Core 268 | . 52 216 Absorbed by Shields . | . . . Core Remaining (%) 100 | 100 . . Volleys Fired 103 | . 40 63 Largest 2 | . 2 2 Hottest 115 | . 70 115 Shots Fired 177 | . 79 98 Gun 103 | . 58 45 Cannon 60 | . 19 41 Launcher 14 | . 2 12 Special . | . . . Kinetic 132 | . 76 56 Thermal 31 | . 1 30 Explosive 14 | . 2 12 Electromagnetic . | . . . Robot Hit Streak 17 | . 8 17 Robot Miss Streak 6 | . 3 6 Penetration Max . | . . . Secondary Targets . | . . . Shots Hit Robots 107 | . 43 64 Core Hits 46 | . 24 22 Critical Kills . | . . . Critical Parts Destroyed . | . . . Critical Strikes 4 | . 1 3 Burn 3 | . . 3 Blast 1 | . 1 . Melee Attacks . | . . . Impact . | . . . Slashing . | . . . Piercing . | . . . Sneak Attacks . | . . . Combat Hostiles . | . . . Follow-up Attacks . | . . . Damage Inflicted 2086 | . 823 1263 Guns 1032 | . 429 603 Cannons 608 | . 165 443 Explosions 401 | . 184 217 Melee . | . . . Ramming 45 | . 45 . Kinetic 1264 | . 594 670 Thermal 376 | . . 376 Explosive 401 | . 184 217 Electromagnetic . | . . . Impact . | . . . Slashing . | . . . Piercing . | . . . Highest Corruption 4 | . 4 4 Average Corruption 3 | . 2 4 Corruption Purged . | . . . Corruption Blocked . | . . . Effects 68 | . 26 42 Message Errors 15 | . 5 10 Matter Fused 16 | . 7 9 Heat Flow Errors 7 | . 3 4 Energy Discharges 7 | . 3 4 Parts Rejected 3 | . 2 1 Data Loss (minor) 12 | . 5 7 Data Loss (major) 3 | . . 3 Misfires 1 | . 1 . Alerts 2 | . . 2 Weapon Failures 2 | . . 2 Overload Shots . | . . . Overflow Damage 20 | . 20 . Projectiles . | . . . Explosions 20 | . 20 . Melee . | . . . Knockbacks 6 | . . 6 Impact . | . . . Kinetic 5 | . . 5 Secondary 1 | . . 1 Self-Inflicted Damage 38 | . 38 . Shots 2 | . 2 . Rammed 7 | . 7 . Targets Rammed 11 | . 11 . Kicked 4 | . 4 . Crushed . | . . . Highest Temperature 172 | . 142 172 Average Temperature 48 | . 51 45 Received Heat Transfer 441 | . 108 333 Siege Activations . | . . . Martial Activations . | . . . Shielding Activations . | . . . Robots Disrupted . | . . . Combat Hostiles . | . . . Robots Corrupted . | . . . Combat Hostiles . | . . . Parts Fried . | . . . Impact Corruptions . | . . . Robots Melted . | . . . Combat Hostiles . | . . . Parts Melted . | . . . Heat Transferred 1184 | . . 1184 Parts Sabotaged . | . . . Parts Stolen . | . . . Parts Stripped . | . . . Power Chain Reactions . | . . . Alert | -11 -10 -10 ------- Run | Yrd Mat Sub Maximum Alert Level . | . . . Low Security (%) 100 | . 100 . Level 1 . | . . . Level 2 . | . . . Level 3 . | . . . Level 4 . | . . . Level 5 . | . . . High Security . | . . . Max Security . | . . . Peak Influence 189 | . 189 . Initial . | . . . Average 77 | . 77 . Influence Increases 792 | . 472 320 Destroy 0b10 Robot/C 320 | . 240 80 Destroy 0b10 Robot/NC 20 | . 20 . Destroy Leader 48 | . 48 . Successful Hack 28 | . 28 . Disable Machine 15 | . 15 . Destroy Structure 16 | . 16 . Lose Combat Pursuer 345 | . 105 240 Influence Decreases 706 | . 398 308 Entered New Map 36 | . . 36 Time Decay 620 | . 398 222 Lost Part 50 | . . 50 Squads Dispatched 3 | . 3 . Investigation 2 | . 2 . Extermination . | . . . Reinforcement 1 | . 1 . Assault . | . . . Garrison . | . . . Intercept . | . . . Searches Triggered . | . . . Construction Impeded . | . . . Haulers Reinforced . | . . . Active Scanning Responses . | . . . Cargo Convoy Interrupts . | . . . Stealth | -11 -10 -10 --------- Run | Yrd Mat Sub Distress Signals 2 | . 2 . Communications Jammed . | . . . Distress Signals . | . . . Times Spotted 37 | . 22 15 Peak Tracking Total 4 | . 4 3 Tactical Retreats 12 | . 6 6 Traps | -11 -10 -10 ------- Run | Yrd Mat Sub Traps Triggered 5 | . 5 . Indirectly . | . . . Trap Hack Attempts . | . . . Triggered . | . . . Disarmed . | . . . Reprogrammed . | . . . Reused . | . . . Traps Extracted . | . . . Installed . | . . . Triggered . | . . . Machines | -11 -10 -10 ---------- Run | Yrd Mat Sub Machines Disabled 3 | . 1 2 Max in Single Turn 1 | . 1 1 Machines Repaired . | . . . Machines Dismantled . | . . . Machines Sabotaged . | . . . Overloaded Fab Kills . | . . . Hacking | -11 -10 -10 --------- Run | Yrd Mat Sub Machines Accessed 9 | . 9 . Terminals 7 | . 7 . Fabricators . | . . . Repair Stations . | . . . Recycling Units 2 | . 2 . Scanalyzers . | . . . Garrison Access . | . . . Total Hacks 22 | . 22 . Successful 8 | . 8 . Failed 14 | . 14 . Catastrophic 4 | . 4 . Database Lockouts . | . . . Manual 19 | . 19 . Terminals 17 | . 17 . Fabricators . | . . . Repair Stations . | . . . Recycling Units 5 | . 5 . Scanalyzers . | . . . Garrison Access . | . . . Terminal Hacks 6 | . 6 . Robot Analysis 5 | . 5 . Locate Traps 1 | . 1 . Fabricator Hacks . | . . . Repair Station Hacks . | . . . Recycling Unit Hacks 2 | . 2 . Retrieve Components 2 | . 2 . Scanalyzer . | . . . Garrison Access Hacks . | . . . Unauthorized Hacks . | . . . Terminals . | . . . Fabricators . | . . . Repair Stations . | . . . Recycling Units . | . . . Scanalyzers . | . . . Garrison Access . | . . . Data Cores Recovered . | . . . Used . | . . . Hacking Detections 8 | . 8 . Full Trace Events 5 | . 5 . Feedback Events . | . . . Feedback Blocked . | . . . Robot Schematics Acquired . | . . . Robots Built . | . . . Authchips . | . . . Time . | . . . Total Robot Build Rating . | . . . Part Schematics Acquired . | . . . Parts Built . | . . . Authchips . | . . . Time . | . . . Total Part Build Rating . | . . . Part Studies Acquired . | . . . Parts Repaired . | . . . Time . | . . . Parts Recycled . | . . . Recycled Matter . | . . . Retrieved Matter . | . . . Retrieved Components 16 | . 16 . Parts Scanalyzed . | . . . Part Schematics Acquired . | . . . Parts Damaged . | . . . Bothacking | -11 -10 -10 ------------ Run | Yrd Mat Sub Used RIF Installer . | . . . Robots Hacked . | . . . Non-combat . | . . . Combat . | . . . Robot Hacks Applied . | . . . Relay Couplers Released . | . . . Fabnet Peak Effective % . | . . . Robots Rewired . | . . . Allies Hacked . | . . . Hacks Repelled . | . . . Allies | -11 -10 -10 -------- Run | Yrd Mat Sub Total Allies . | . . . Largest Group . | . . . Highest-Rated Group . | . . . Highest-Rated Ally . | . . . Total Orders . | . . . Ally Attacks . | . . . Total Damage . | . . . Kills . | . . . Allies Corrupted . | . . . Allies Melted . | . . . Intel | -11 -10 -10 ------- Run | Yrd Mat Sub Active Infowar (turns) . | . . . Robot Analysis Total 5 | . 5 . Derelict Logs Recovered . | . . . Drone Launches . | . . . Drone Recoveries . | . . . Exploration | -11 -10 -10 ------------- Run | Yrd Mat Sub Turns Passed 3752 | . 1891 1861 Spaces Moved 1326 | 1 805 520 Core . | . . . Treads 931 | . 411 520 Legs 395 | 1 394 . Wheels . | . . . Hover . | . . . Flight . | . . . Fastest Speed 120 | 120 120 320 Average Speed 253 | 120 210 320 Slowest Speed 480 | 120 320 480 Overloaded Moves . | . . . Propulsion Burnouts . | . . . Robots Hopped . | . . . Potential Cave-ins . | . . . Cave-ins Triggered . | . . . Exploration Rate (%) 42 | 2 99 27 Regions Visited 2 Branch Regions 1 Pre-discovered Areas . | . . . Known Exits Taken . | . . . Unknown Exits Taken 2 | 1 1 . Scrap Searched . | . . . Spaces Dug . | . . . Terrain Destroyed 38 | . 14 24 Melee . | . . . Projectile . | . . . AOE 38 | . 14 24 Terrain Rammed . | . . . Walls Destroyed . | . . . Machines Disabled . | . . . Actions | -11 -10 -10 --------- Run | Yrd Mat Sub Total 1521 | . 910 611 Wait 16 | . 5 11 Move 1324 | . 804 520 Hop . | . . . Pick Up 17 | . 15 2 Fast Attach 7 | . 6 1 Attach 7 | . . 7 Detach 1 | . 1 . Swap 24 | . 17 7 Drop 11 | . 11 . Fire 103 | . 40 63 Melee . | . . . Ram . | . . . Kick 4 | . 4 . Crush 7 | . 7 . Escape Stasis . | . . . Rewire . | . . . Trap . | . . . Miscellaneous . | . . . Route ------- -11/Scrapyard -10/Materials (discovered 6 exits: [*Mat x3] / [*Min x2] / [*Sub]) -10/Subcaves (discovered 2 exits: [*Mat] / [*Rec]) History --------- Turn | Location | Event 1 | -11/Scrapyard | Discovered new exit (range 0) 1 | -11/Scrapyard | Entered Materials 293 | -10/Materials | Discovered new exit (range 16) 316 | -10/Materials | Build established: Mutant 398 | -10/Materials | Discovered new exit (range 10) 501 | -10/Materials | Derelicts attacked the area 579 | -10/Materials | Discovered new exit (range 8) 833 | -10/Materials | Build established: Scavenger-Mutant 971 | -10/Materials | Discovered new exit (range 8) 1364 | -10/Materials | Discovered new exit (range 7) 1562 | -10/Materials | Discovered new exit (range 10) 1892 | -10/Materials | Entered Subcaves 2010 | -10/Subcaves | Discovered new exit (range 15) 2840 | -10/Subcaves | Core integrity fell below 50% 2862 | -10/Subcaves | A Subdweller sparked back to life 2868 | -10/Subcaves | Core integrity fell below 20% 2896 | -10/Subcaves | Lost 5 parts (1p2n2w) 2957 | -10/Subcaves | Discovered new exit (range 15) 3137 | -10/Subcaves | Build established: Mutant 3753 | -10/Subcaves | Destroyed by CT-7Q8(R) with Subdweller Machine Gun Last Messages --------------- 02978_ The unstable cave ceiling collapses. 02982_ Subatomizers dissect the Sub. Monowheel. 02983_ System corrupted: Matter fused (-9). 02983_ The unstable cave ceiling collapses. 02993_ Subatomizers dissect the Sub. Monowheel. 03015_ Subatomizers dissect the Sub. Monowheel, destroying it. 03159_ XS-OK0(u) tweaks Twisted Machinery. 03222_ MNCSZ#C6=G8&KCEWRX>I5 ,D= VLE,4|U 03280_ System corrupted: Energy discharge (-58). 03360_ System corrupted: IFF burst signal emitted. 03397_ UCJGACCJ5XE0TB=WKBIG6AG6XI 03427_ System corrupted: Substantial component data lost. 03479_ System corrupted: Component data lost. 03573_ System corrupted: Heat flow error (+100). 03598_ System corrupted: Heat flow error (+210). 03624_ System corrupted: Component data lost. 03661_ IVC4:1QZP2<0RNYS660 6%8=C9RFO5MSPRG 03676_ System corrupted: Heat flow error (+110). 03698_ G1K%TO>PQ1ZE84ORZ1O7D